bitfinex-derivatives/quotes_ETHF0:USTF0_20251007
["timestamp","ask_amount","ask_price","bid_price","bid_amount"]
[1759843714811,0.45376504,4752.0,4751.9,3.21046676]
[1759843718215,0.45376504,4752.0,4751.9,0.00266676]
[1759843723622,0.1271,4752.5,4752.0,0.37853]
[1759843723823,0.3785,4752.3,4752.0,0.37853]
[1759843724424,0.38045646,4752.3,4752.1,0.37852]
[1759843724619,0.37851,4752.2,4751.9,3.58899676]
[1759843724825,0.1237,4752.0,4751.9,3.58899676]
[1759843725024,0.37852,4752.1,4751.9,3.58899676]
[1759843725225,0.1237,4752.0,4751.9,3.21046676]
[1759843725420,0.00195646,4752.3,4751.9,3.58899676]
[1759843725421,0.38046646,4752.3,4751.9,3.58899676]
[1759843725621,0.3094,4752.2,4752.0,0.37853]
[1759843725817,0.3094,4752.2,4751.9,3.21046676]
[1759843726019,0.3094,4752.2,4751.9,44.38899676]
[1759843726218,0.02897236,4752.1,4751.9,44.38899676]
[1759843726421,0.40749236,4752.1,4751.9,44.38899676]
[1759843727225,0.02897236,4752.0,4751.9,44.38899676]
[1759843727526,0.37852,4752.1,4751.9,44.38899676]
[1759843727741,0.37852,4752.1,4751.9,44.01046676]
[1759843728027,0.4331,4752.0,4751.9,3.21046676]
[1759843729530,0.31135646,4752.3,4752.1,0.37852]
[1759843729728,0.00195646,4752.3,4752.1,0.37852]
[1759843729928,0.37852,4752.2,4751.9,3.58899676]
[1759843730127,0.37852,4752.1,4751.9,3.58899676]
[1759843730529,0.38046646,4752.3,4752.1,0.37851]
[1759843730728,0.1271,4752.5,4752.3,0.3785]
[1759843730729,0.37849,4752.5,4752.3,0.3785]
[1759843730927,0.4365,4753.0,4752.4,3.2078]
[1759843731230,0.4365,4753.5,4753.0,0.37845]
[1759843731426,0.37844,4753.2,4753.0,0.37845]
[1759843731735,0.38067828,4753.2,4753.0,0.37845]
[1759843731931,0.37844,4753.1,4752.9,3.2078]
[1759843732333,0.37844,4753.1,4752.9,3.58625]
[1759843732529,0.00223828,4753.2,4752.9,3.58625]
[1759843732727,0.38066828,4753.2,4752.9,3.58625]
[1759843733127,0.4331,4753.0,4752.9,3.2078]
[1759843733431,0.00223828,4753.2,4752.9,3.58625]
[1759843733432,0.38066828,4753.2,4752.9,3.58625]
[1759843734030,0.00223828,4753.2,4753.0,0.37845]
[1759843734232,0.00223828,4753.2,4752.9,3.2078]
[1759843734535,0.00223828,4753.2,4753.0,0.37844]
[1759843735232,0.00223828,4753.2,4752.9,3.2078]
[1759843735432,0.40741236,4753.1,4752.9,3.2078]
[1759843736029,0.4397,4753.0,4752.9,3.2078]
[1759843736429,0.3187,4752.6,4752.5,40.8]
[1759843737232,0.37848,4752.7,4752.5,0.37849]
[1759843737433,0.14997236,4753.0,4752.4,3.2078]
[1759843737634,0.02897236,4752.7,4752.4,4.31571233]
[1759843737834,0.37844,4753.1,4752.8,0.37846]
[1759843738037,0.00223828,4753.2,4752.4,45.11571233]
[1759843738240,0.37842,4753.4,4753.1,0.37843]
[1759843738541,0.37842,4753.3,4753.1,0.37844]
[1759843739338,0.38059003,4753.3,4753.1,0.37844]
[1759843739637,0.37843,4753.2,4752.9,3.58625]
[1759843739842,0.37843,4753.2,4753.0,0.37845]
[1759843740237,0.37839,4753.7,4752.9,3.2078]
[1759843740542,0.3784,4753.6,4753.4,3.2078]
[1759843741045,0.6971,4753.6,4753.4,3.2078]
[1759843741240,0.0016045,4753.6,4753.5,0.3784]
[1759843741445,0.3800045,4753.6,4753.4,3.2078]
[1759843742141,0.3800045,4753.6,4753.4,3.58621]
[1759843742541,0.4397,4753.5,4753.4,3.2078]
[1759843743146,0.3800045,4753.6,4753.4,3.2078]
[1759843743344,0.0016045,4753.6,4753.4,3.58621]
[1759843743549,0.37839,4753.7,4753.5,0.37841]
[1759843743751,0.4424,4754.0,4753.6,0.3784]
[1759843743949,0.82077,4754.0,4753.7,0.37839]
[1759843744249,0.37838,4753.9,4753.7,0.37839]
[1759843744450,0.38034936,4753.9,4753.7,0.37839]
[1759843744649,0.37836,4754.1,4753.8,0.37838]
[1759843744952,0.37837,4754.0,4753.8,0.37838]
[1759843745349,0.1237,4754.5,4753.9,0.37838]
[1759843745653,0.37835,4754.3,4753.9,0.37838]
[1759843745949,0.00194112,4754.4,4754.2,0.37835]
[1759843746951,0.38028112,4754.4,4754.2,0.37835]
[1759843747155,0.00194112,4754.4,4754.2,0.37835]
[1759843747349,0.69898112,4754.4,4754.2,0.37835]
[1759843747852,0.37835,4754.3,4754.0,41.34912977]
[1759843748053,0.37835,4754.3,4754.1,0.37836]
[1759843748350,0.32064112,4754.4,4754.2,0.37835]
[1759843748750,0.00194112,4754.4,4754.2,0.37835]
[1759843749147,3.5861,4754.9,4754.2,0.94588]
[1759843749346,0.3187,4755.3,4754.7,3.2078]
[1759843749554,0.3187,4755.7,4754.9,0.37829]
[1759843750048,0.37828,4755.2,4754.9,0.37829]
[1759843750253,0.37828,4755.2,4754.7,3.2078]
[1759843750555,0.37828,4755.1,4754.9,0.37829]
[1759843750754,0.37827,4755.2,4755.0,0.37828]
[1759843751447,0.37827,4755.2,4754.7,3.2078]
[1759843751648,0.3187,4755.4,4754.9,0.37829]
[1759843751848,0.12289858,4755.5,4754.7,3.2078]
[1759843751849,0.37828,4755.2,4755.0,0.37829]
[1759843752049,0.3187,4755.2,4755.0,0.37829]
[1759843752550,0.4077,4756.7,4755.9,0.37821]
[1759843752749,0.3187,4756.6,4756.2,3.2078]
[1759843752949,0.089,4756.7,4756.2,3.2078]
[1759843753154,0.089,4756.7,4756.4,0.37817]
[1759843753357,0.4077,4756.7,4756.4,0.37817]
[1759843753548,0.4397,4756.5,4756.4,0.3801686]
[1759843754551,0.4397,4756.5,4756.4,0.0019986]
[1759843754758,0.81787,4756.5,4756.4,0.0019986]
[1759843755050,1.01577,4756.5,4756.4,0.0019986]
[1759843755256,6.21347,4756.5,4756.4,0.0019986]
[1759843756554,0.89482,4755.9,4755.8,40.8]
[1759843756856,0.69692,4755.9,4755.8,40.8]
[1759843757059,0.4397,4756.0,4755.8,41.17822]
[1759843757453,0.121,4756.0,4755.8,41.18005471]
[1759843757654,0.3187,4755.9,4755.8,41.18005471]
[1759843757855,0.3187,4755.9,4755.8,40.80183471]
[1759843760257,0.121,4756.5,4756.4,0.37818]
[1759843760559,0.3187,4756.3,4756.1,0.3782]
[1759843760761,0.3187,4756.2,4756.1,0.3782]
[1759843761259,0.121,4756.5,4756.2,0.37819]
[1759843761459,0.3187,4756.4,4756.2,0.37819]
[1759843761857,0.4397,4756.5,4756.3,0.37818]
[1759843762360,0.09171482,4756.7,4756.2,0.37819]
[1759843762552,0.3187,4756.4,4756.2,0.37819]
[1759843762757,0.3187,4756.4,4756.3,0.37818]
[1759843763258,0.69688,4756.4,4756.1,0.3782]
[1759843763554,0.37819,4756.3,4755.9,0.37821]
[1759843763762,0.3142,4755.9,4755.8,41.18005471]
[1759843764355,0.3142,4755.9,4755.8,0.00183471]
[1759843764756,0.4338,4756.0,4755.8,0.38005471]
[1759843764961,0.3142,4755.9,4755.8,0.38005471]
[1759843765557,0.1196,4756.0,4755.8,0.38005471]
[1759843766258,0.3142,4755.9,4755.8,0.38005471]
[1759843766459,0.3142,4755.9,4755.8,0.00183471]
[1759843769366,0.1196,4756.0,4755.8,0.00183471]
[1759843769565,0.7153,4755.9,4755.8,0.00183471]
[1759843769961,0.3142,4755.9,4755.8,0.00183471]
[1759843770263,0.5133,4755.9,4755.8,0.00183471]
[1759843770955,0.3142,4755.9,4755.8,0.00183471]
[1759843771964,0.7153,4755.9,4755.8,0.00183471]
[1759843772765,0.5133,4755.9,4755.8,0.00183471]
[1759843772965,0.7153,4755.9,4755.8,0.00183471]
[1759843774357,0.37823,4755.8,4754.7,3.58611]
[1759843774557,0.3142,4754.9,4754.8,0.3783]
[1759843774758,0.3142,4754.9,4754.8,41.1783]
[1759843775458,0.3142,4754.9,4754.8,41.17986571]
[1759843775660,0.3142,4754.9,4754.8,0.37986571]
[1759843775859,0.5133,4754.9,4754.8,0.00156571]
[1759843776262,0.3142,4754.9,4754.8,0.00156571]
[1759843778161,0.5133,4754.9,4754.8,0.00156571]
[1759843778462,0.7123,4754.9,4754.8,0.00156571]
[1759843778855,0.5133,4754.9,4754.8,0.00156571]
[1759843779664,0.3142,4754.9,4754.8,0.00156571]
[1759843780562,0.5322,4754.9,4754.8,0.00156571]
[1759843780860,0.3433,4754.5,4754.4,1.0371]
[1759843781061,1.23673,4754.5,4754.4,1.0371]
[1759843781264,0.69448,4753.8,4753.7,3.2078]
[1759843781761,0.69448,4753.8,4753.7,44.0078]
[1759843781962,0.69448,4753.8,4753.7,44.01033603]
[1759843782764,0.69448,4753.8,4753.7,3.21033603]
[1759843783159,1.11148,4753.8,4753.7,0.00253603]
[1759843783865,4.31928,4753.8,4753.7,0.00253603]
[1759843786169,3.90228,4753.8,4753.7,0.00253603]
[1759843786361,3.5239,4753.8,4753.7,0.00253603]
[1759843786964,0.1253,4754.0,4753.7,3.21033603]
[1759843787170,0.1253,4754.0,4753.9,0.37838]
[1759843787367,0.69445,4754.2,4753.7,3.21033603]
[1759843787671,3.2078,4754.8,4754.1,0.37836]
[1759843787866,0.3161,4754.4,4754.1,0.37836]
[1759843788171,0.37832,4754.6,4754.3,0.37834]
[1759843788373,3.5239,4754.8,4754.3,0.37834]
[1759843788571,3.2078,4754.8,4754.5,0.37833]
[1759843788773,3.90221,4754.8,4754.5,0.37833]
[1759843789275,0.1196,4755.0,4754.8,0.3783]
[1759843789475,0.1196,4755.5,4754.9,3.2078]
[1759843789672,0.1196,4755.5,4755.1,0.37828]
[1759843789877,0.3161,4755.3,4755.0,0.37828]
[1759843790072,0.1196,4755.5,4755.0,0.37828]
[1759843790276,0.1196,4755.5,4755.2,0.37827]
[1759843790475,0.3161,4755.4,4755.2,0.37827]
[1759843790881,0.1196,4755.5,4755.2,0.37827]
[1759843791682,0.34507236,4755.4,4755.2,0.37827]
[1759843791877,1.03711482,4756.7,4755.8,0.37822]
[1759843791878,0.4414,4756.0,4755.8,0.37822]
[1759843792179,0.1253,4756.0,4755.8,0.37822]
[1759843792379,0.3161,4755.9,4755.8,0.37822]
[1759843793274,0.2959,4755.9,4755.7,3.58603]
[1759843793480,0.1253,4756.0,4755.7,3.58603]
[1759843793680,0.2959,4755.9,4755.8,0.37822]
[1759843793881,0.37823,4755.7,4754.9,3.2078]
[1759843794186,0.1311,4755.5,4755.4,0.37825]
[1759843795284,0.427,4755.5,4755.4,0.37825]
[1759843796081,0.427,4755.5,4755.0,40.8]
[1759843796082,0.79941,4756.0,4755.7,0.37823]
[1759843796284,0.50351,4756.0,4755.7,0.37823]
[1759843796780,0.2959,4755.9,4755.0,40.8]
[1759843796985,0.2959,4755.9,4755.7,0.37823]
[1759843797580,0.50351,4756.0,4755.7,0.37823]
[1759843797888,0.427,4755.5,4755.4,0.37825]
[1759843799481,0.1311,4755.5,4755.0,40.8]
[1759843799678,0.1311,4755.5,4755.2,0.37827]
[1759843799884,0.2959,4755.3,4755.1,0.37828]
[1759843800186,0.2959,4755.4,4755.0,41.17829]
[1759843800379,0.1311,4755.5,4755.0,41.17829]
[1759843800579,0.427,4755.5,4755.4,3.2078]
[1759843801089,0.2959,4755.7,4755.5,0.37825]
[1759843801277,0.1253,4756.0,4755.4,3.2078]
[1759843801482,0.02897236,4755.6,4755.5,0.37825]
[1759843801786,0.02897236,4755.6,4755.4,3.58606]
[1759843801983,0.427,4755.5,4755.4,3.2078]
[1759843802184,0.6372,4755.5,4755.4,3.2078]
[1759843802381,0.66617236,4755.5,4755.4,3.2078]
[1759843802582,0.67418,4755.1,4754.8,3.2078]
[1759843802882,0.2959,4754.9,4754.8,3.5861]
[1759843803077,0.2959,4754.9,4754.8,44.3861]
[1759843803284,0.2959,4754.9,4754.8,3.5861]
[1759843803485,0.32487236,4754.9,4754.8,3.2078]
[1759843803677,0.1311,4754.5,4754.2,3.2078]
[1759843803882,0.2959,4754.3,4754.2,3.2078]
[1759843804586,0.32487236,4754.3,4754.2,3.2078]
[1759843805089,0.67428,4753.8,4753.7,0.00253603]
[1759843805282,0.2959,4753.8,4753.7,0.00253603]
[1759843805484,0.7144,4753.8,4753.7,0.00253603]
[1759843805685,0.32487236,4753.8,4753.7,0.00253603]
[1759843806083,0.74337236,4753.8,4753.7,0.00253603]
[1759843806484,0.53507236,4753.8,4753.7,0.00253603]
[1759843806688,0.32487236,4753.8,4753.7,0.00253603]
[1759843806888,0.74337236,4753.8,4753.7,0.00253603]
[1759843807187,0.32487236,4753.8,4753.7,0.00253603]
[1759843807387,0.02897236,4753.8,4753.7,0.00253603]
[1759843807688,0.02897236,4753.8,4753.7,3.21033603]
[1759843807883,0.1311,4754.5,4753.7,3.21033603]
[1759843808090,0.2959,4754.8,4754.3,3.2078]
[1759843808284,0.1311,4755.0,4754.3,3.2078]
[1759843808484,0.1311,4755.0,4754.4,40.8]
[1759843808686,0.1311,4755.0,4754.8,3.2078]
[1759843808887,0.2959,4754.9,4754.8,3.2078]
[1759843809087,0.1311,4755.0,4754.8,3.5861]
[1759843809586,0.2959,4754.9,4754.8,3.2078]
[1759843809789,0.50939,4755.0,4754.4,40.8]
[1759843809993,0.427,4754.0,4753.9,0.37838]
[1759843810189,0.1311,4754.0,4753.9,3.2078]
[1759843810487,0.1311,4754.0,4753.7,0.00253603]
[1759843810488,0.2959,4753.9,4753.7,0.00253603]
[1759843810690,0.1311,4754.0,4753.7,0.38092603]
[1759843810986,0.2959,4753.9,4753.7,0.38092603]
[1759843811187,0.67428,4753.9,4753.7,0.00253603]
[1759843811386,0.2959,4754.4,4753.8,0.94597]
[1759843811592,0.1311,4754.5,4754.1,3.2078]
[1759843811786,0.2959,4754.4,4754.1,3.58616]
[1759843812093,0.1311,4754.5,4754.1,3.2078]
[1759843812295,0.1311,4754.5,4753.7,0.00253603]
[1759843812296,0.37838,4753.8,4753.7,0.00253603]
[1759843812586,0.37838,4753.8,4753.3,0.9568]
[1759843812587,0.2959,4753.4,4753.3,0.9568]
[1759843812791,0.67432,4753.4,4753.2,3.2078]
[1759843812992,0.2959,4753.3,4753.2,3.2078]
[1759843813188,0.1311,4753.0,4752.7,3.58627]
[1759843813387,0.42959692,4753.0,4752.7,3.20964315]
[1759843813689,0.32487236,4752.9,4752.7,3.58811315]
[1759843813886,0.02897236,4752.9,4752.7,3.58811315]
[1759843814486,0.13369692,4753.0,4752.9,0.34948764]
[1759843814686,0.00259692,4753.0,4752.9,0.34948764]
[1759843814890,0.42959692,4753.0,4752.9,0.34948764]
[1759843815194,0.427,4753.5,4753.4,0.37842]
[1759843815393,0.1311,4753.5,4753.4,0.37842]
[1759843815784,0.427,4753.5,4753.4,0.37842]
[1759843816190,0.42946276,4753.5,4753.4,0.37842]
[1759843816894,0.13356276,4753.5,4753.2,45.30273]
[1759843817089,0.2959,4753.4,4753.3,0.37842]
[1759843817294,0.13356276,4753.5,4753.3,0.37842]
[1759843817693,0.00246276,4753.5,4753.3,0.37842]
[1759843818193,0.427,4754.0,4753.9,0.37838]
[1759843818793,0.1311,4753.5,4753.3,0.37842]
[1759843818990,0.2959,4753.4,4753.3,0.37842]
[1759843819390,0.5061,4753.3,4753.2,4.1243]
[1759843819597,0.67432,4753.3,4753.2,0.9165]
[1759843819895,0.2959,4752.9,4752.8,0.37846]
[1759843820292,0.2959,4753.4,4753.1,0.37843]
[1759843820490,0.2959,4753.4,4752.9,0.37845]
[1759843820794,0.427,4753.0,4752.9,0.37845]
[1759843821190,0.2959,4752.9,4752.7,3.20964315]
[1759843821496,0.2959,4752.9,4752.8,0.37846]
[1759843821998,0.2959,4752.9,4752.7,0.00184315]
[1759843821999,0.67436,4752.9,4752.7,0.00184315]
[1759843822302,0.2959,4751.9,4751.8,0.37854]
[1759843822503,0.1311,4752.0,4751.7,0.37855]
[1759843822703,0.37854,4751.9,4751.5,40.8]
[1759843822898,0.2959,4751.4,4751.1,0.3786]
[1759843823100,0.2959,4750.9,4750.1,3.2078]
[1759843823305,0.14844128,4750.5,4750.1,3.7580692]
[1759843823504,0.14844128,4750.5,4750.3,0.37866]
[1759843823701,0.2982,4750.4,4750.3,0.37866]
[1759843823906,0.1311,4751.0,4750.8,0.37862]
[1759843824309,0.2982,4750.9,4750.2,40.8]
[1759843824806,0.4273,4750.5,4750.4,0.37865]
[1759843825002,0.2982,4750.3,4750.2,40.8]
[1759843825211,0.2982,4750.4,4750.1,0.00241009]
[1759843826102,0.2982,4750.2,4750.1,0.00241009]
[1759843826801,0.1291,4750.5,4750.1,0.00241009]
[1759843827003,0.2982,4750.8,4750.7,0.37863]
[1759843827401,0.2982,4750.8,4750.1,0.00241009]
[1759843827402,0.1311,4751.0,4750.1,0.00241009]
[1759843827607,0.2982,4750.9,4750.8,0.37862]
[1759843828305,0.2982,4750.9,4750.8,41.17862]
[1759843829400,0.1311,4752.0,4751.7,0.37855]
[1759843829606,0.1311,4752.0,4751.1,3.2078]
[1759843829805,0.2982,4751.9,4751.1,3.2078]
[1759843830006,0.1311,4752.0,4751.1,3.2078]
[1759843830212,0.1291,4751.5,4751.4,0.37857]
[1759843830410,0.1311,4752.0,4751.9,0.37853]
[1759843830605,0.1291,4752.5,4751.6,3.2078]
[1759843830805,3.2078,4752.6,4752.5,0.37849]
[1759843831005,0.42996137,4753.5,4752.7,0.94617]
[1759843831206,0.13176137,4753.5,4753.4,0.37842]
[1759843831811,0.42996137,4753.5,4753.4,0.37842]
[1759843832601,0.1291,4754.0,4753.9,0.37838]
[1759843833313,0.1291,4754.0,4753.9,41.17838]
[1759843833610,0.4273,4754.5,4754.4,0.37834]
[1759843833811,0.13141731,4754.5,4754.1,0.37835]
[1759843834012,0.13141731,4754.5,4754.2,0.37835]
[1759843834207,0.2982,4754.4,4754.3,0.37834]
[1759843835108,0.13141731,4754.5,4754.0,0.37837]
[1759843835314,0.4273,4754.0,4753.9,40.80237856]
[1759843835813,0.4273,4754.0,4753.9,0.00237856]
[1759843836605,0.1291,4754.0,4753.9,0.00237856]
[1759843836809,0.4273,4754.0,4753.9,0.00237856]
[1759843837017,0.1291,4754.0,4753.9,0.00237856]
[1759843837212,3.2078,4754.3,4754.2,0.37835]
[1759843837712,0.13141731,4754.5,4754.0,3.2078]
[1759843837913,0.4391,4755.5,4755.4,0.37826]
[1759843838112,0.31,4755.9,4755.0,0.94572]
[1759843838307,0.1291,4756.0,4755.8,0.37822]
[1759843838513,0.1291,4756.0,4755.2,0.94569]
[1759843838514,0.31,4756.4,4756.2,0.37819]
[1759843838708,0.4391,4756.5,4756.3,0.37818]
[1759843839016,0.1233,4756.0,4755.9,44.38602]
[1759843839412,0.1233,4756.0,4755.9,40.8]
[1759843839413,0.4333,4756.0,4755.9,40.8]
[1759843840216,3.6411,4756.0,4755.1,0.37828]
[1759843840418,3.6411,4756.0,4754.8,3.2078]
[1759843840720,3.6411,4756.0,4755.4,0.37825]
[1759843840909,4.01931,4756.0,4755.4,0.37825]
[1759843841113,0.37824,4755.6,4754.9,40.8]
[1759843841312,0.1233,4755.0,4754.9,41.17829]
[1759843841514,0.4333,4755.0,4754.9,40.8]
[1759843841710,0.1233,4755.0,4754.9,40.8]
[1759843842115,0.4333,4755.0,4754.9,40.8]
[1759843842316,0.31,4754.9,4754.5,0.37833]
[1759843842515,0.37832,4754.7,4753.8,3.2078]
[1759843842716,0.1233,4754.5,4754.2,0.37835]
[1759843843016,0.68835,4754.3,4754.0,40.8]
[1759843843221,0.1233,4754.0,4753.2,3.2078]
[1759843843421,0.4333,4754.0,4753.2,3.2078]
[1759843843723,0.4333,4754.0,4753.6,0.3784]
[1759843844222,0.4333,4754.0,4753.7,0.37839]
[1759843844419,0.81167,4754.0,4753.3,40.8]
[1759843844616,0.81167,4754.0,4753.5,0.3784]
[1759843844816,0.4333,4754.0,4753.6,0.3784]
[1759843845024,3.2078,4754.4,4753.9,0.38074856]
[1759843845326,0.1233,4754.5,4754.4,0.37834]
[1759843845525,0.31,4754.9,4754.3,0.37834]
[1759843845726,0.1233,4754.5,4754.3,0.37834]
[1759843846016,0.31,4754.9,4753.9,0.00237856]
[1759843846017,0.31,4754.9,4754.1,0.94591]
[1759843846218,0.4333,4755.0,4754.4,3.2078]
[1759843846425,0.31,4754.9,4754.8,0.3783]
[1759843846623,0.1233,4755.0,4754.8,0.3783]
[1759843846922,0.4333,4755.0,4754.8,0.3783]
[1759843847125,0.1233,4755.0,4754.8,0.3783]
[1759843847425,0.31,4754.9,4754.8,0.3783]
[1759843848425,0.4333,4755.0,4754.8,0.3783]
[1759843848622,0.31,4754.9,4754.8,0.3783]
[1759843848823,0.31,4754.9,4754.8,40.8]
[1759843849224,0.4333,4754.5,4754.4,3.58613]
[1759843849725,0.1233,4754.5,4754.4,40.8]
[1759843850119,0.1233,4755.0,4754.8,0.3783]
[1759843850321,0.31,4754.9,4754.8,0.3783]
[1759843850720,0.31,4754.9,4754.4,40.8]
[1759843850920,0.4333,4754.5,4754.4,41.17834]
[1759843851926,0.4333,4754.5,4753.9,0.38075856]
[1759843851927,0.1233,4754.0,4753.9,0.38075856]
[1759843852225,0.4333,4754.5,4754.4,0.37834]
[1759843852523,0.1233,4755.0,4754.9,0.3783]
[1759843852718,0.4333,4755.5,4754.4,41.74584]
[1759843852922,0.4333,4755.5,4755.3,0.37826]
[1759843853123,0.31,4755.4,4755.3,0.37826]
[1759843853324,0.50155,4755.5,4755.0,0.37829]
[1759843853521,0.3046,4755.4,4755.2,0.37827]
[1759843853717,0.37826,4755.4,4754.4,40.8]
[1759843853922,0.1286,4755.0,4754.4,40.8]
[1759843854527,0.1286,4755.0,4754.9,0.3783]
[1759843854725,0.1286,4755.0,4754.8,0.3783]
[1759843855027,0.4332,4755.0,4754.8,0.3783]
[1759843855227,0.1286,4755.0,4754.8,0.3783]
[1759843855424,0.3046,4755.3,4755.2,0.37827]
[1759843855627,3.2078,4755.4,4755.2,0.37827]
[1759843856022,0.3046,4755.3,4755.2,0.37827]
[1759843856724,0.3046,4755.3,4754.4,41.74584]
[1759843856922,0.4332,4754.5,4754.4,40.8]
[1759843857321,0.4332,4754.0,4753.8,0.37838]
[1759843857518,3.641,4754.0,4753.1,3.2078]
[1759843857726,8.641,4754.0,4752.6,3.2078]
[1759843858231,8.641,4754.0,4750.5,11.35939]
[1759843858232,0.3046,4752.9,4752.7,40.8]
[1759843858829,0.37846,4752.9,4751.4,0.16656876]
[1759843859130,0.3046,4752.6,4752.0,0.37852]
[1759843859333,0.1286,4752.5,4752.3,0.3785]
[1759843859517,0.4332,4752.5,4752.1,41.17852]
[1759843859830,0.3046,4752.3,4752.1,40.8]
[1759843860127,0.3046,4752.2,4752.1,40.8]
[1759843860426,0.3046,4751.9,4751.7,3.2078]
[1759843860725,0.3046,4751.9,4751.7,0.37855]
[1759843860932,0.3046,4751.9,4751.8,40.8]
[1759843861525,0.1286,4752.0,4751.9,0.37853]
[1759843862024,0.4332,4752.0,4751.9,0.37853]
[1759843862227,3.2078,4752.3,4751.8,40.8]
[1759843862429,0.3046,4752.4,4752.2,0.37851]
[1759843862730,3.20955962,4752.9,4752.3,0.3785]
[1759843862922,3.58801962,4752.9,4752.3,0.3785]
[1759843863332,3.20955962,4752.9,4752.4,0.37849]
[1759843863533,0.3046,4751.9,4751.8,40.8]
[1759843863728,0.37854,4751.8,4751.4,0.00270132]
[1759843863937,0.4332,4751.5,4751.4,0.00270132]
[1759843864134,0.1286,4751.5,4751.4,0.00270132]
[1759843864328,0.1286,4752.0,4751.5,0.37857]
[1759843864524,3.5124,4752.4,4752.0,0.37852]
[1759843864929,0.3046,4752.3,4752.2,0.37851]
[1759843865124,3.2078,4752.4,4752.2,0.37851]
[1759843865537,3.2078,4752.4,4751.4,40.80270132]
[1759843865731,0.3046,4752.3,4752.2,0.37851]
[1759843866035,3.5124,4752.4,4752.2,0.37851]
[1759843866231,3.2078,4752.4,4752.2,0.37851]
[1759843866429,0.3046,4752.3,4752.2,0.37851]
[1759843867328,0.3046,4752.4,4752.2,0.37851]
[1759843867531,0.3046,4752.4,4752.3,0.3785]
[1759843868041,0.00175962,4752.9,4752.3,3.2078]
[1759843868236,3.641,4753.5,4753.4,0.37842]
[1759843868437,3.2078,4754.2,4753.2,0.94607]
[1759843868737,0.1286,4754.5,4753.6,3.2078]
[1759843868945,0.1286,4754.5,4753.9,0.94595]
[1759843869133,0.3046,4754.9,4754.1,3.2078]
[1759843869338,0.30641414,4754.9,4754.1,3.2078]
[1759843869640,0.3046,4754.8,4754.1,0.37836]
[1759843869941,0.37832,4754.7,4753.6,3.2078]
[1759843870142,3.20961414,4754.9,4753.6,3.2078]
[1759843870143,0.3046,4754.3,4753.6,3.2078]
[1759843870337,3.2078,4754.4,4753.4,40.8]
[1759843870543,0.4332,4753.5,4753.4,40.8]
[1759843870742,0.4332,4752.5,4751.9,3.2078]
[1759843871041,0.1286,4752.5,4752.1,0.37851]
[1759843871241,0.3046,4752.4,4752.2,40.8]
[1759843871444,3.5124,4752.3,4752.2,40.8]
[1759843871646,0.1286,4752.0,4751.7,0.37855]
[1759843871948,0.3046,4751.9,4751.4,3.21050132]
[1759843872142,0.3046,4751.9,4751.6,0.37855]
[1759843872342,3.2078,4752.3,4751.5,40.8]
[1759843872544,3.5124,4752.3,4751.8,0.37854]
[1759843872736,0.3046,4752.2,4751.5,40.8]
[1759843872938,0.1286,4752.0,4751.5,41.17856]
[1759843873138,0.3046,4751.9,4751.7,0.37855]
[1759843873941,0.1286,4752.5,4751.5,40.8]
[1759843874247,0.1286,4752.5,4752.0,0.37852]
[1759843874447,0.3046,4752.4,4751.8,0.37854]
[1759843874746,0.1286,4752.0,4751.9,0.37853]
[1759843874944,0.4332,4752.0,4751.9,0.37853]
[1759843875145,0.1286,4752.5,4751.5,40.8]
[1759843875449,0.4332,4752.5,4752.4,0.3785]
[1759843875950,0.1286,4752.5,4752.4,0.3785]
[1759843876448,3.2078,4753.4,4753.2,0.37843]
[1759843876846,0.3046,4753.3,4753.2,0.37843]
[1759843877047,3.2078,4753.4,4753.2,0.37843]
[1759843877249,3.2078,4753.4,4753.2,1.42893]
[1759843878249,0.1286,4754.5,4753.3,5.0]
[1759843878547,0.1286,4754.5,4753.9,3.2078]
[1759843878749,0.1286,4755.0,4754.4,0.37834]
[1759843878950,0.1286,4755.0,4754.8,3.5861]
[1759843878951,0.3046,4754.9,4754.8,3.5861]
[1759843879151,0.1286,4755.0,4754.8,3.5861]
[1759843879347,0.1286,4755.0,4754.9,40.8]
[1759843880049,0.43498675,4755.0,4754.9,40.80253152]
[1759843882350,0.4332,4754.0,4753.9,0.37837]
[1759843882543,0.3046,4753.9,4753.8,3.2078]
[1759843882744,0.3046,4753.4,4753.3,0.37842]
[1759843882947,0.3046,4753.4,4753.3,40.8]
[1759843883344,0.3046,4753.4,4753.3,40.80161394]
[1759843884254,0.3046,4753.4,4753.3,0.00161394]
[1759843884741,0.3046,4753.4,4753.3,40.80161394]
[1759843885147,5.3046,4753.4,4753.3,0.00161394]
[1759843887745,0.1302,4752.5,4752.2,3.2078]
[1759843887943,0.1302,4752.5,4750.8,0.94655]
[1759843887944,0.3006,4752.3,4751.8,0.37854]
[1759843888144,0.1302,4752.0,4751.9,0.37853]
[1759843888345,0.4308,4752.0,4751.9,0.37853]
[1759843888542,0.1302,4752.0,4751.9,0.37853]
[1759843888747,0.1302,4752.0,4751.9,41.18012927]
[1759843889347,0.4308,4752.0,4751.9,41.18012927]
[1759843889555,0.1302,4752.0,4751.9,41.18012927]
[1759843889756,0.1302,4752.0,4751.9,46.18012927]
[1759843890054,0.4308,4752.0,4751.9,41.18012927]
[1759843890455,0.4308,4752.0,4751.9,40.80159927]
[1759843892753,0.1302,4752.0,4751.9,40.80159927]
[1759843893562,0.4308,4752.0,4751.9,40.80159927]
[1759843895154,0.1302,4752.5,4752.4,0.3785]
[1759843895358,0.1302,4753.0,4752.9,0.37846]
[1759843895568,0.1302,4753.0,4752.6,3.2078]
[1759843895858,0.3006,4752.7,4752.1,3.2078]